Cogmind - Beta 14 @@@ ROGUE MODE // 2024.08.26 @ 20:23:26 Player: Olafz Result: Destroyed by G-50 Soldier with Heavy Laser Performance ------------- Evolutions (4) 2000 Regions Visited (7) 1400 Robots Destroyed (10) 50 Value Destroyed (538) 538 Prototype IDs (0) 0 Alien Tech Used (0) 0 Bonus (700) 700 TOTAL SCORE: 4688 Bonus ------- Pacifist 200 Entered DSFs 500 Cogmind --------- Core Integrity 0/850 Matter 300/300 Energy 98/100 System Corruption 8% Temperature Cool (18) Movement Core (50) Location -6/Lower Caves Parts ------- > --- POWER (1) -------- (None) > --- PROPULSION (2) --- (None) > --- UTILITY (10) ----- Visual Processing Unit Advanced Signal Interpreter Advanced Signal Interpreter Terrain Scan Processor Transport Network Coupler Core Analyzer > --- WEAPON (2) ------- (None) > --- INVENTORY (5) ---- Micro Nuclear Core Micro Nuclear Core Microactuators Microactuators Peak State ------------ > --- POWER ------------ (None) > --- PROPULSION ------- (None) > --- UTILITY ---------- Visual Processing Unit Advanced Signal Interpreter Advanced Signal Interpreter Terrain Scan Processor Transport Network Coupler Core Analyzer Core Analyzer Microactuators Microactuators Microactuators > --- WEAPON ----------- Katana > --- INVENTORY -------- Micro Nuclear Core Micro Nuclear Core Microactuators [Rating: 39] Favorites ----------- Power Micro Nuclear Core Power Core Micro Nuclear Core Propulsion None Utility Core Analyzer Device Microactuators Processor Core Analyzer Weapon Katana Impact Weapon Heavy Hammer Slashing Weapon Katana Build | -11 -10 -9 -8 -7 -7 -6 -6 ------- Run | Yrd Mat Mat Mat Fac DSF Fac Low Slots Evolved 8 | . . 2 2 2 . 2 . Power . | . . . . . . . . Propulsion . | . . . . . . . . Utility 8 | . . 2 2 2 . 2 . Weapon . | . . . . . . . . Parts Attached 19 | . . 1 3 . 3 12 . Power 1 | . . . . . . 1 . Engine . | . . . . . . . . Core 1 | . . . . . . 1 . Reactor . | . . . . . . . . Propulsion . | . . . . . . . . Treads . | . . . . . . . . Leg . | . . . . . . . . Wheel . | . . . . . . . . Hover . | . . . . . . . . Flight . | . . . . . . . . Utility 15 | . . . 3 . 2 10 . Device 5 | . . . . . . 5 . Storage . | . . . . . . . . Processor 10 | . . . 3 . 2 5 . Hackware . | . . . . . . . . Protection . | . . . . . . . . Artifact . | . . . . . . . . Weapon 3 | . . 1 . . 1 1 . Energy Gun . | . . . . . . . . Energy Cannon . | . . . . . . . . Ballistic Gun . | . . . . . . . . Ballistic Cannon . | . . . . . . . . Launcher . | . . . . . . . . Special Weapon . | . . . . . . . . Impact Weapon 1 | . . 1 . . . . . Slashing Weapon 2 | . . . . . 1 1 . Piercing Weapon . | . . . . . . . . Special Melee Weapon . | . . . . . . . . Unidentified Prototypes . | . . . . . . . . Parts Lost 9 | . . . . . 1 8 . Power . | . . . . . . . . Propulsion . | . . . . . . . . Utility 7 | . . . . . 1 6 . Weapon 2 | . . . . . . 2 . Highest Loss Streak 3 | . . . . . 1 3 . To Critical Strikes . | . . . . . . . . Average Slot Usage (%) 40 | . . 10 25 30 38 56 45 Core 1 | . . . . . . 2 . Device 5 | . . . . . . 9 5 Processor 28 | . . . 16 23 32 38 40 Impact Weapon 2 | . . 10 9 7 . . . Slashing Weapon 2 | . . . . . 4 4 . Peak Build Rating 39 | . . 2 13 13 22 39 24 Average Rating 18 | . . 1 8 13 17 27 23 On Entrance 8 | . . . 2 13 13 18 24 Naked Turns 49 | . 45 4 . . . . . Heaviest Build 8 | . . 3 3 3 2 8 2 Greatest Support 9 | 3 3 3 3 3 3 9 3 Greatest Overweight (x) 2 | . . . . . . 2 . Average Overweight (x) . | . . . . . . . . Largest Inventory Capacity 5 | 5 5 5 5 5 5 5 5 Average Capacity 5 | 5 5 5 5 5 5 5 5 Most Carried 5 | . . 1 5 5 5 4 4 Average Carried 2 | . . . 3 5 3 2 4 Final Capacity 5 | 5 5 5 5 5 5 5 5 Final Carried 5 | . . 1 5 5 3 4 4 Class Distribution -------------------- 100% | Mutant Dominant Class ---------------- Mutant | -10/Materials Mutant | -9/Materials Mutant | -8/Materials Mutant | -7/Factory Mutant | -7/DSF Mutant | -6/Factory Mutant | -6/Lower Caves Resources | -11 -10 -9 -8 -7 -7 -6 -6 ----------- Run | Yrd Mat Mat Mat Fac DSF Fac Low Matter Collected 387 | 113 . 84 43 . . 139 8 Remotely . | . . . . . . . . Salvage Created 551 | . . 84 100 . . 367 . Parts 28 | . . 3 4 . . 21 . Haulers Intercepted 1 | . . . . . . 1 . Recyclers Shooed . | . . . . . . . . Parts Field Recycled . | . . . . . . . . Retrieved Matter . | . . . . . . . . Parts Self-Destructed . | . . . . . . . . Prevented . | . . . . . . . . Kills | -11 -10 -9 -8 -7 -7 -6 -6 ------- Run | Yrd Mat Mat Mat Fac DSF Fac Low Combat Hostiles Destroyed 8 | . . 2 2 . . 4 . Melee 6 | . . 1 1 . . 4 . Classes Destroyed 5 | . . 1 . . . 4 . Hauler 1 | . . . . . . 1 . Watcher 1 | . . . . . . 1 . Grunt 1 | . . . . . . 1 . Sentry 6 | . . 2 2 . . 2 . Programmer 1 | . . . . . . 1 . Best Kill Streak 2 | . . 1 2 . . 2 . Combat Bots Only 2 | . . 1 2 . . 1 . Max Kills in Single Turn 1 | . . 1 1 . . 1 . Gunslinging . | . . . . . . . . Exploded . | . . . . . . . . Melee 1 | . . 1 1 . . 1 . Uniques/NPCs Destroyed . | . . . . . . . . Combat | -11 -10 -9 -8 -7 -7 -6 -6 -------- Run | Yrd Mat Mat Mat Fac DSF Fac Low Hostile Shots Fired 177 | . . 20 20 . 12 121 4 Missed 63 | . . 10 7 . 8 37 1 Damage Taken 1642 | . . 148 188 . 125 1123 58 Core 1223 | . . 118 159 . 86 802 58 Absorbed by Shields . | . . . . . . . . Core Remaining (%) 85 | 100 100 70 71 . 87 . . Volleys Fired . | . . . . . . . . Largest . | . . . . . . . . Hottest . | . . . . . . . . Shots Fired . | . . . . . . . . Gun . | . . . . . . . . Cannon . | . . . . . . . . Launcher . | . . . . . . . . Special . | . . . . . . . . Kinetic . | . . . . . . . . Thermal . | . . . . . . . . Explosive . | . . . . . . . . Electromagnetic . | . . . . . . . . Robot Hit Streak . | . . . . . . . . Robot Miss Streak . | . . . . . . . . Penetration Max . | . . . . . . . . Secondary Targets . | . . . . . . . . Shots Hit Robots 32 | . . 9 5 . . 18 . Core Hits 11 | . . 1 1 . . 9 . Critical Kills 1 | . . . 1 . . . . Critical Parts Destroyed 1 | . . 1 . . . . . Critical Strikes 7 | . . 3 1 . . 3 . Smash 4 | . . 3 1 . . . . Sever 3 | . . . . . . 3 . Melee Attacks 48 | . . 10 7 1 . 30 . Impact 18 | . . 10 7 1 . . . Slashing 30 | . . . . . . 30 . Piercing . | . . . . . . . . Sneak Attacks 1 | . . . . . . 1 . Combat Hostiles . | . . . . . . . . Follow-up Attacks . | . . . . . . . . Damage Inflicted 1009 | . . 214 160 . . 635 . Guns . | . . . . . . . . Cannons . | . . . . . . . . Explosions . | . . . . . . . . Melee 1004 | . . 214 160 . . 630 . Ramming 5 | . . . . . . 5 . Kinetic . | . . . . . . . . Thermal . | . . . . . . . . Explosive . | . . . . . . . . Electromagnetic . | . . . . . . . . Impact 374 | . . 214 160 . . . . Slashing 630 | . . . . . . 630 . Piercing . | . . . . . . . . Highest Corruption 8 | . . . . . . 8 8 Average Corruption 6 | . . . . . . 5 8 Corruption Purged . | . . . . . . . . Corruption Blocked . | . . . . . . . . Effects 14 | . . . . . . 10 4 Message Errors 4 | . . . . . . 3 1 Matter Fused 3 | . . . . . . 2 1 Heat Flow Errors 3 | . . . . . . 2 1 Energy Discharges 2 | . . . . . . 2 . Parts Rejected 1 | . . . . . . . 1 Data Loss (minor) 1 | . . . . . . 1 . Overload Shots . | . . . . . . . . Overflow Damage 39 | . . 30 9 . . . . Projectiles . | . . . . . . . . Explosions . | . . . . . . . . Melee 39 | . . 30 9 . . . . Knockbacks . | . . . . . . . . Impact . | . . . . . . . . Kinetic . | . . . . . . . . Secondary . | . . . . . . . . Self-Inflicted Damage 2 | . . . . . . 2 . Shots . | . . . . . . . . Rammed 2 | . . . . . . 2 . Targets Rammed 2 | . . . . . . 2 . Kicked . | . . . . . . . . Crushed . | . . . . . . . . Highest Temperature 99 | . . . . . . 99 82 Average Temperature 53 | . . . . . . 57 45 Received Heat Transfer 423 | . . 45 99 . . 252 27 Siege Activations . | . . . . . . . . Robots Corrupted 2 | . . 1 1 . . . . Combat Hostiles 2 | . . 1 1 . . . . Parts Fried 3 | . . 2 1 . . . . Impact Corruptions 4 | . . 3 1 . . . . Robots Melted . | . . . . . . . . Combat Hostiles . | . . . . . . . . Parts Melted . | . . . . . . . . Heat Transferred . | . . . . . . . . Parts Sabotaged . | . . . . . . . . Parts Stolen . | . . . . . . . . Parts Stripped . | . . . . . . . . Power Chain Reactions . | . . . . . . . . Alert | -11 -10 -9 -8 -7 -7 -6 -6 ------- Run | Yrd Mat Mat Mat Fac DSF Fac Low Peak Influence 258 | . 15 95 158 235 172 258 . Initial 167 | . . 5 39 71 167 90 . Average 111 | . 2 48 87 207 162 134 . Maximum Alert Level 1 | . . . . 1 . 1 . Low Security (%) 85 | 100 100 100 100 11 100 81 . Level 1 14 | . . . . 88 . 18 . Level 2 . | . . . . . . . . Level 3 . | . . . . . . . . Level 4 . | . . . . . . . . Level 5 . | . . . . . . . . High Security . | . . . . . . . . Max Security . | . . . . . . . . Squads Dispatched 5 | . . 1 . 1 1 2 . Investigation . | . . . . . . . . Extermination 1 | . . . . . . 1 . Reinforcement 3 | . . 1 . . 1 1 . Assault 1 | . . . . 1 . . . Garrison . | . . . . . . . . Intercept . | . . . . . . . . Searches Triggered . | . . . . . . . . Construction Impeded . | . . . . . . . . Haulers Reinforced . | . . . . . . . . Active Scanning Responses . | . . . . . . . . Cargo Convoy Interrupts . | . . . . . . . . Stealth | -11 -10 -9 -8 -7 -7 -6 -6 --------- Run | Yrd Mat Mat Mat Fac DSF Fac Low Distress Signals 1 | . . . 1 . . . . Communications Jammed . | . . . . . . . . Distress Signals . | . . . . . . . . Times Spotted 33 | . 2 3 4 . 4 12 8 Peak Tracking Total 7 | . 2 1 3 . 3 5 7 Tactical Retreats 3 | . . . . . 1 1 1 Traps | -11 -10 -9 -8 -7 -7 -6 -6 ------- Run | Yrd Mat Mat Mat Fac DSF Fac Low Traps Triggered 3 | . . . . . . 3 . Indirectly . | . . . . . . . . Trap Hack Attempts . | . . . . . . . . Triggered . | . . . . . . . . Disarmed . | . . . . . . . . Reprogrammed . | . . . . . . . . Reused . | . . . . . . . . Traps Extracted . | . . . . . . . . Installed . | . . . . . . . . Triggered . | . . . . . . . . Machines | -11 -10 -9 -8 -7 -7 -6 -6 ---------- Run | Yrd Mat Mat Mat Fac DSF Fac Low Machines Disabled 1 | . . . . 1 . . . Max in Single Turn 1 | . . . . 1 . . . Garrison Access 1 | . . . . 1 . . . Machines Repaired . | . . . . . . . . Machines Dismantled . | . . . . . . . . Machines Sabotaged . | . . . . . . . . Overloaded Fab Kills . | . . . . . . . . Hacking | -11 -10 -9 -8 -7 -7 -6 -6 --------- Run | Yrd Mat Mat Mat Fac DSF Fac Low Machines Accessed 8 | . . 1 1 2 . 4 . Terminals 8 | . . 1 1 2 . 4 . Fabricators . | . . . . . . . . Repair Stations . | . . . . . . . . Recycling Units . | . . . . . . . . Scanalyzers . | . . . . . . . . Garrison Access . | . . . . . . . . Total Hacks 14 | . . 2 2 3 . 7 . Successful 5 | . . . 1 2 . 2 . Failed 9 | . . 2 1 1 . 5 . Catastrophic . | . . . . . . . . Database Lockouts . | . . . . . . . . Manual 12 | . . 2 2 2 . 6 . Terminals 14 | . . 2 2 3 . 7 . Fabricators . | . . . . . . . . Repair Stations . | . . . . . . . . Recycling Units . | . . . . . . . . Scanalyzers . | . . . . . . . . Garrison Access . | . . . . . . . . Terminal Hacks 2 | . . . . 1 . 1 . Open DSF 2 | . . . . 1 . 1 . Fabricator Hacks . | . . . . . . . . Repair Station Hacks . | . . . . . . . . Recycling Unit Hacks . | . . . . . . . . Scanalyzer . | . . . . . . . . Garrison Access Hacks . | . . . . . . . . Unauthorized Hacks 3 | . . . 1 1 . 1 . Terminals 3 | . . . 1 1 . 1 . Botnet 3 | . . . 1 1 . 1 . Fabricators . | . . . . . . . . Repair Stations . | . . . . . . . . Recycling Units . | . . . . . . . . Scanalyzers . | . . . . . . . . Garrison Access . | . . . . . . . . Data Cores Recovered . | . . . . . . . . Used . | . . . . . . . . Hacking Detections 7 | . . 1 1 2 . 3 . Full Trace Events . | . . . . . . . . Feedback Events . | . . . . . . . . Feedback Blocked . | . . . . . . . . Robot Schematics Acquired . | . . . . . . . . Robots Built . | . . . . . . . . Authchips . | . . . . . . . . Time . | . . . . . . . . Total Robot Build Rating . | . . . . . . . . Part Schematics Acquired . | . . . . . . . . Parts Built . | . . . . . . . . Authchips . | . . . . . . . . Time . | . . . . . . . . Total Part Build Rating . | . . . . . . . . Parts Repaired . | . . . . . . . . Time . | . . . . . . . . Parts Recycled . | . . . . . . . . Recycled Matter . | . . . . . . . . Retrieved Matter . | . . . . . . . . Retrieved Components . | . . . . . . . . Parts Scanalyzed . | . . . . . . . . Part Schematics Acquired . | . . . . . . . . Parts Damaged . | . . . . . . . . Bothacking | -11 -10 -9 -8 -7 -7 -6 -6 ------------ Run | Yrd Mat Mat Mat Fac DSF Fac Low Used RIF Installer . | . . . . . . . . Robots Hacked . | . . . . . . . . Non-combat . | . . . . . . . . Combat . | . . . . . . . . Robot Hacks Applied . | . . . . . . . . Relay Couplers Released 1 | . . . . 1 . . . Machine Destruction 1 | . . . . 1 . . . Fabnet Peak Effective % . | . . . . . . . . Robots Rewired . | . . . . . . . . Allies Hacked . | . . . . . . . . Hacks Repelled . | . . . . . . . . Allies | -11 -10 -9 -8 -7 -7 -6 -6 -------- Run | Yrd Mat Mat Mat Fac DSF Fac Low Total Allies . | . . . . . . . . Largest Group . | . . . . . . . . Highest-Rated Group . | . . . . . . . . Highest-Rated Ally . | . . . . . . . . Total Orders . | . . . . . . . . Ally Attacks . | . . . . . . . . Total Damage . | . . . . . . . . Kills . | . . . . . . . . Allies Corrupted . | . . . . . . . . Allies Melted . | . . . . . . . . Intel | -11 -10 -9 -8 -7 -7 -6 -6 ------- Run | Yrd Mat Mat Mat Fac DSF Fac Low Robot Analysis Total . | . . . . . . . . Derelict Logs Recovered . | . . . . . . . . Drone Launches . | . . . . . . . . Drone Recoveries . | . . . . . . . . Exploration | -11 -10 -9 -8 -7 -7 -6 -6 ------------- Run | Yrd Mat Mat Mat Fac DSF Fac Low Turns Passed 1045 | 10 45 128 146 44 34 517 121 Spaces Moved 1524 | 20 81 183 201 83 57 657 242 Core 1524 | 20 81 183 201 83 57 657 242 Treads . | . . . . . . . . Legs . | . . . . . . . . Wheels . | . . . . . . . . Hover . | . . . . . . . . Flight . | . . . . . . . . Fastest Speed 50 | 50 50 50 50 50 50 50 50 Average Speed 55 | 50 50 50 50 50 50 63 50 Slowest Speed 150 | 50 50 50 50 50 50 150 50 Overloaded Moves . | . . . . . . . . Propulsion Burnouts . | . . . . . . . . Robots Hopped . | . . . . . . . . Cave-ins Triggered . | . . . . . . . . Exploration Rate (%) 26 | 3 26 25 26 3 65 25 41 Regions Visited 7 Branch Regions 1 Pre-discovered Areas . | . . . . . . . . Known Exits Taken 2 | . . . . 1 . 1 . Unknown Exits Taken 4 | 1 1 1 1 . . . . Scrap Searched 1 | . . . . . . . 1 Spaces Dug . | . . . . . . . . Terrain Destroyed . | . . . . . . . . Melee . | . . . . . . . . Projectile . | . . . . . . . . AOE . | . . . . . . . . Terrain Rammed . | . . . . . . . . Walls Destroyed . | . . . . . . . . Machines Disabled . | . . . . . . . . Actions | -11 -10 -9 -8 -7 -7 -6 -6 --------- Run | Yrd Mat Mat Mat Fac DSF Fac Low Total 1633 | 19 84 200 232 83 62 711 242 Wait 35 | . 4 6 18 . . 7 . Move 1517 | 19 80 182 200 82 56 656 242 Hop . | . . . . . . . . Pick Up 8 | . . 1 4 . 1 2 . Fast Attach 15 | . . 1 3 . 1 10 . Attach 4 | . . . . . 2 2 . Detach 2 | . . . . . . 2 . Swap . | . . . . . . . . Drop 2 | . . . . . 2 . . Fire . | . . . . . . . . Melee 48 | . . 10 7 1 . 30 . Ram 2 | . . . . . . 2 . Kick . | . . . . . . . . Crush . | . . . . . . . . Escape Stasis . | . . . . . . . . Rewire . | . . . . . . . . Trap . | . . . . . . . . Miscellaneous . | . . . . . . . . Route ------- -11/Scrapyard -10/Materials -9/Materials -8/Materials -7/Factory -7/DSF -6/Factory -6/Lower Caves History --------- Turn | Location | Event 4 | -11/Scrapyard | Discovered new exit (range 15) 11 | -11/Scrapyard | Entered Materials 49 | -10/Materials | Discovered new exit (range 10) 56 | -10/Materials | Entered another Materials area 56 | -9/Materials | Evolved 2 slots: Utility x2 173 | -9/Materials | Discovered new exit (range 15) 184 | -9/Materials | Entered another Materials area 184 | -8/Materials | Evolved 2 slots: Utility x2 306 | -8/Materials | Build established: Mutant 328 | -8/Materials | Discovered new exit (range 4) 330 | -8/Materials | Entered Factory 330 | -7/Factory | Evolved 2 slots: Utility x2 374 | -7/Factory | Identified exit to DSF 374 | -7/Factory | Entered DSF 393 | -7/DSF | Additional patrols routed to DSF 401 | -7/DSF | Discovered new exit (range 15) 408 | -7/DSF | Entered Factory 408 | -6/Factory | Evolved 2 slots: Utility x2 734 | -6/Factory | Core integrity fell below 50% 759 | -6/Factory | Lost 3 parts (2u1w) 901 | -6/Factory | Core integrity fell below 20% 923 | -6/Factory | Discovered new exit (range 5) 925 | -6/Factory | Identified exit to Lower Caves 925 | -6/Factory | Entered Lower Caves 951 | -6/Lower Caves | Lost 3 parts (3u) 969 | -6/Lower Caves | Lost 3 allies 1044 | -6/Lower Caves | Attracted the attention of an 0b10 outpost 1046 | -6/Lower Caves | Destroyed by G-50 Soldier with Heavy Laser Last Messages --------------- System corrupted: Heat flow error (+136). Slammed into S-27 Virus. Destabilizing: Core damaged (-8). Microactuators destroyed. EXIT=FOUND EXIT=IDENTIFIED: LOWER CAVES LOCATION=LOWER CAVES GOAL=ESCAPE Searching scrap... Found Mak. Salvage Targeting Computer. Found 51 Matter. System corrupted: Matter fused (-8). Acquired 8 matter. System corrupted: Heat flow error (+119). K8GMOMPDFOP|4 51-MR6(S) destroyed. Map ----- +----------------------------------------------------+ | ????????????????###????#####?????????????????????? | | ???????????????## ##### ##????#######????????? | | ???????????????? ###?## ##???????? | | ???????????????? ### ##???##?? | | ?????????????????? ?# #?## ##? | | ???????????????????# ?#### ###/#### ### ## | | ????????????????????# #??## # ??# | | ?????????????????????# ?## # ?# | | ????????????????????## ## #? "# ## | | ????????????????????# #? #### ##?? | | ????????????????????# #? + # ##? | | ????????????????????# #? # ## | | ?????????????????#### # ##### # | | ?????????????????# % # | | ?????????????????## * ###### ## | | ??????????????????## ####????### #### | | ???????????????????## #?????????# ##??## | | ????????????????????#### #?????????# #?????## | | ????????????????????#### b###???????## ???????## | | ???????????????###### ##Yb ###### ## ???????## | | ???????????????# gb ## ?????### | | ???????????????# %lg # ????## | | ???????????????# ### #######%= = ??### | | ???????????????# #?# ##?????????%! ??# | | ??????????????## ###### ##??????????* #??## | | ??????????????# ###### @#??#####??????????## | | ??????????????## #?# #?# ##??????????## | | ???????????????## ### ## #???????????## | | ????????????##### ## ##???????????## | | ???????????## ## #????????????## | | ???????????# ##### #????????????? | | ???????????## ####????##????????????? | | ????????????### ####### ##?????????? | | ??????????????# ! ##????????? | | ??????????????## ## ## #??????### | | ???????????????# ## ### ####?????## | | ???????????????# #### ##?# #????????# | | ???????????????#######??####??# ## #????????# ## | | ??????????????????????????????###?####????????##?# | | ????????????????????????????????????????????????# | | ????????????????????????????????????????????????# | | ???????????????????????????????????????????????# | | ???????????????????????????????????????????????# | | ???????????????????????????????????????????????# | | ???????????????????????????????????????????????## | | ????????????????????????????????????????????###?## | | ???????????????????????????????????????###### ##?? | | ???????????????????????????????????????#" ## #?? | | ???????????????????????????????????????# "" ##? | | ???????????????????????????????????????#""" ## | +----------------------------------------------------+ Best States ------------- Heat Dissipation 37 Energy Generation 15 Energy Capacity 150 Matter Stores 300 Matter Capacity 300 Sight Range 18 Robot Scan Range 15 Terrain Scan Density 160 Additional Mass Support 6 Melee Speed Boost 50 Evasion (%) 50 Core Analysis 9 Item Schematics ----------------- None Robot Schematics ------------------ None Fabricated ------------ Nothing Alien Tech Used ----------------- None Achievements -------------- None Challenges ------------ None Game ------ Seed ProcessingScrapDerivative Manual? 0 Play Time 00:13:03 Cumulative 251.9 hours Start 2024.08.26 @ 20:10:44 End 2024.08.26 @ 20:23:26 Sessions 1 Manual Loads 0 Difficulty Rogue Special Mode None Game No. 466 Rogue 464 Adventurer 2 Explorer 0 Win Type - Total 14 Types 11/0/1/2/0/0/0/0/0 Lore% 74 Gallery% 68 Achievement% 57 Wizard Run 0 Options --------- Layout 0 ASCII 0 Keyboard 1 Movement Numpad Keybinds 1 Fullscreen 2 Font 18/SmallcapsGlow Map View 76x50 Zoom Use 0% Tactical HUD 1 Map Filters NONE Filters NONE Steam 1 RUN: bc9b13ae-8da1-4af4-a4c9-7e9568894e93